[Event "Titled Tuesday Blitz August 09 Early 2022"]
[White "Samunenkov, Ihor"]
[Black "Buscar, Michael"]
[WhiteFideId "14187086"]
[BlackFideId "2603616"]
[WhiteElo "2441"]
[BlackElo "2010"]
[Result "1-0"]
[Round "02"]
[TimeControl "180+1"]
[Date "2022.08.09"]
[WhiteClock "0:00:09"]
[BlackClock "0:00:03"]

1. d4 {[%clk 0:03:00]}  d5 {[%clk 0:02:58]} 2. c4 {[%clk 0:02:59]}  e6 {[%clk 0:02:57]} 3. Nc3 {[%clk 0:02:58]}  a6 {[%clk 0:02:56]} 4. cxd5 {[%clk 0:02:51]}  exd5 {[%clk 0:02:57]} 5. Bf4 {[%clk 0:02:47]}  Nf6 {[%clk 0:02:50]} 6. e3 {[%clk 0:02:48]}  Bd6 {[%clk 0:02:46]} 7. Bg5 {[%clk 0:02:48]}  c6 {[%clk 0:02:40]} 8. Bd3 {[%clk 0:02:47]}  Nbd7 {[%clk 0:02:37]} 9. Nge2 {[%clk 0:02:44]}  Nf8 {[%clk 0:02:35]} 10. h3 {[%clk 0:02:15]}  Ne6 {[%clk 0:02:22]} 11. Bh4 {[%clk 0:02:15]}  Be7 {[%clk 0:02:09]} 12. O-O {[%clk 0:01:50]}  O-O {[%clk 0:02:03]} 13. f3 {[%clk 0:01:41]}  c5 {[%clk 0:01:45]} 14. dxc5 {[%clk 0:01:40]}  Bxc5 {[%clk 0:01:41]} 15. Kh1 {[%clk 0:01:17]}  Bxe3 {[%clk 0:01:39]} 16. Bxf6 {[%clk 0:01:14]}  Qxf6 {[%clk 0:01:25]} 17. Nxd5 {[%clk 0:01:15]}  Qh6 {[%clk 0:01:17]} 18. Ne7+ {[%clk 0:01:04]}  Kh8 {[%clk 0:01:15]} 19. Nf5 {[%clk 0:01:05]}  Qg5 {[%clk 0:01:05]} 20. h4 {[%clk 0:01:03]}  Qh5 {[%clk 0:00:57]} 21. g4 {[%clk 0:01:00]}  Qg6 {[%clk 0:00:53]} 22. Nxe3 {[%clk 0:00:57]}  Qf6 {[%clk 0:00:51]} 23. g5 {[%clk 0:00:47]}  Qxb2 {[%clk 0:00:42]} 24. Nc4 {[%clk 0:00:42]}  Qb4 {[%clk 0:00:37]} 25. Rb1 {[%clk 0:00:37]}  Qc5 {[%clk 0:00:34]} 26. Nb6 {[%clk 0:00:37]}  Rb8 {[%clk 0:00:34]} 27. Be4 {[%clk 0:00:35]}  Qe5 {[%clk 0:00:26]} 28. Qd5 {[%clk 0:00:28]}  Qc7 {[%clk 0:00:20]} 29. Rfc1 {[%clk 0:00:25]}  Qe7 {[%clk 0:00:18]} 30. Nxc8 {[%clk 0:00:25]}  Rbxc8 {[%clk 0:00:18]} 31. Rxc8 {[%clk 0:00:25]}  Rxc8 {[%clk 0:00:18]} 32. Rxb7 {[%clk 0:00:19]}  Qa3 {[%clk 0:00:16]} 33. Rxf7 {[%clk 0:00:16]}  Rc1+ {[%clk 0:00:10]} 34. Kh2 {[%clk 0:00:08]}  Qb2 {[%clk 0:00:03]} 35. Qd8+ {[%clk 0:00:08]}  Nxd8 {[%clk 0:00:03]} 36. Rf8# {[%clk 0:00:09]} 1-0


[Site "https://www.chess.com"]

[Event "Titled Tuesday Blitz August 09 Early 2022"]
[White "Sanal, Vahap"]
[Black "Samant Aditya S"]
[WhiteFideId "6300545"]
[BlackFideId "35080580"]
[WhiteElo "2574"]
[BlackElo "1968"]
[Result "1/2-1/2"]
[Round "02"]
[TimeControl "180+1"]
[Date "2022.08.09"]
[WhiteClock "0:01:11"]
[BlackClock "0:00:07"]

1. g3 {[%clk 0:03:00]}  c5 {[%clk 0:02:59]} 2. Bg2 {[%clk 0:03:01]}  Nc6 {[%clk 0:03:00]} 3. f4 {[%clk 0:03:01]}  g6 {[%clk 0:03:00]} 4. Nf3 {[%clk 0:03:01]}  Bg7 {[%clk 0:03:01]} 5. d3 {[%clk 0:03:02]}  d5 {[%clk 0:02:59]} 6. c3 {[%clk 0:03:02]}  Nf6 {[%clk 0:03:00]} 7. O-O {[%clk 0:03:03]}  O-O {[%clk 0:03:00]} 8. Na3 {[%clk 0:03:03]}  Re8 {[%clk 0:02:54]} 9. Qe1 {[%clk 0:03:02]}  a6 {[%clk 0:02:50]} 10. h3 {[%clk 0:02:37]}  b5 {[%clk 0:02:46]} 11. g4 {[%clk 0:02:37]}  c4 {[%clk 0:02:22]} 12. d4 {[%clk 0:02:28]}  Ne4 {[%clk 0:02:06]} 13. Nc2 {[%clk 0:02:28]}  Qb6 {[%clk 0:02:02]} 14. Kh1 {[%clk 0:02:27]}  a5 {[%clk 0:02:00]} 15. Ne5 {[%clk 0:02:24]}  Nxe5 {[%clk 0:01:53]} 16. fxe5 {[%clk 0:02:21]}  f6 {[%clk 0:01:43]} 17. Ne3 {[%clk 0:02:19]}  Bb7 {[%clk 0:01:33]} 18. Bxe4 {[%clk 0:02:11]}  dxe4 {[%clk 0:01:33]} 19. exf6 {[%clk 0:02:11]}  exf6 {[%clk 0:01:33]} 20. Qg3 {[%clk 0:02:00]}  Rac8 {[%clk 0:01:25]} 21. Bd2 {[%clk 0:01:55]}  b4 {[%clk 0:01:06]} 22. Rf2 {[%clk 0:01:54]}  Rf8 {[%clk 0:00:39]} 23. Raf1 {[%clk 0:01:53]}  b3 {[%clk 0:00:36]} 24. a3 {[%clk 0:01:53]}  a4 {[%clk 0:00:36]} 25. Kg1 {[%clk 0:01:53]}  Qe6 {[%clk 0:00:31]} 26. Rh2 {[%clk 0:01:47]}  Rf7 {[%clk 0:00:31]} 27. Kf2 {[%clk 0:01:45]}  Bf8 {[%clk 0:00:31]} 28. Rhh1 {[%clk 0:01:41]}  Bd6 {[%clk 0:00:31]} 29. Qg2 {[%clk 0:01:42]}  Kh8 {[%clk 0:00:31]} 30. Ke1 {[%clk 0:01:42]}  f5 {[%clk 0:00:30]} 31. gxf5 {[%clk 0:01:41]}  gxf5 {[%clk 0:00:31]} 32. d5 {[%clk 0:01:37]}  Bxd5 {[%clk 0:00:26]} 33. Nxd5 {[%clk 0:01:37]}  Qxd5 {[%clk 0:00:27]} 34. Be3 {[%clk 0:01:36]}  Be5 {[%clk 0:00:25]} 35. Qg5 {[%clk 0:01:24]}  Rg8 {[%clk 0:00:21]} 36. Qh5 {[%clk 0:01:21]}  Bg3+ {[%clk 0:00:19]} 37. Rf2 {[%clk 0:01:21]}  Bxf2+ {[%clk 0:00:10]} 38. Kxf2 {[%clk 0:01:22]}  Rfg7 {[%clk 0:00:05]} 39. Bd4 {[%clk 0:01:21]}  e3+ {[%clk 0:00:05]} 40. Kxe3 {[%clk 0:01:18]}  Qxh1 {[%clk 0:00:05]} 41. Bxg7+ {[%clk 0:01:16]}  Kxg7 {[%clk 0:00:05]} 42. Qg5+ {[%clk 0:01:16]}  Kf7 {[%clk 0:00:04]} 43. Qxf5+ {[%clk 0:01:16]}  Kg7 {[%clk 0:00:05]} 44. Qg5+ {[%clk 0:01:12]}  Kf8 {[%clk 0:00:05]} 45. Qf6+ {[%clk 0:01:11]}  Ke8 {[%clk 0:00:06]} 46. Qe6+ {[%clk 0:01:11]}  Kf8 {[%clk 0:00:07]} 47. Qf6+ {[%clk 0:01:10]}  Ke8 {[%clk 0:00:07]} 48. Qe6+ {[%clk 0:01:11]}  Kf8 {[%clk 0:00:07]} 49. Qf6+ {[%clk 0:01:11]} 1/2-1/2


[Site "https://www.chess.com"]

[Event "Titled Tuesday Blitz August 09 Early 2022"]
[White "Sarana, Alexey"]
[Black "Melikyan, Gnel"]
[WhiteFideId "24133795"]
[BlackFideId "54109990"]
[WhiteElo "2666"]
[BlackElo "1772"]
[Result "1-0"]
[Round "02"]
[TimeControl "180+1"]
[Date "2022.08.09"]
[WhiteClock "0:01:41"]
[BlackClock "0:00:03"]

1. d4 {[%clk 0:03:00]}  Nf6 {[%clk 0:02:59]} 2. c4 {[%clk 0:02:58]}  g6 {[%clk 0:02:59]} 3. Nc3 {[%clk 0:02:59]}  Bg7 {[%clk 0:02:59]} 4. e4 {[%clk 0:02:59]}  d6 {[%clk 0:02:59]} 5. Be2 {[%clk 0:03:00]}  O-O {[%clk 0:02:59]} 6. Be3 {[%clk 0:03:01]}  c5 {[%clk 0:02:53]} 7. d5 {[%clk 0:03:01]}  e6 {[%clk 0:02:52]} 8. Nf3 {[%clk 0:03:00]}  exd5 {[%clk 0:02:51]} 9. cxd5 {[%clk 0:03:01]}  Re8 {[%clk 0:02:51]} 10. Nd2 {[%clk 0:03:01]}  a6 {[%clk 0:02:48]} 11. a4 {[%clk 0:03:01]}  Nbd7 {[%clk 0:02:38]} 12. O-O {[%clk 0:03:00]}  Rb8 {[%clk 0:02:24]} 13. Bf4 {[%clk 0:02:58]}  Ne5 {[%clk 0:02:23]} 14. h3 {[%clk 0:02:59]}  Bd7 {[%clk 0:02:20]} 15. a5 {[%clk 0:02:58]}  b5 {[%clk 0:02:15]} 16. axb6 {[%clk 0:02:58]}  Rxb6 {[%clk 0:02:14]} 17. Bxe5 {[%clk 0:02:59]}  Rxe5 {[%clk 0:01:54]} 18. Nc4 {[%clk 0:02:59]}  Nxe4 {[%clk 0:01:51]} 19. Nxb6 {[%clk 0:02:41]}  Nxc3 {[%clk 0:01:46]} 20. bxc3 {[%clk 0:02:39]}  Qxb6 {[%clk 0:01:46]} 21. Rxa6 {[%clk 0:02:39]}  Qb7 {[%clk 0:01:41]} 22. Rxd6 {[%clk 0:02:27]}  Bf8 {[%clk 0:01:32]} 23. Ra6 {[%clk 0:02:27]}  Rxd5 {[%clk 0:01:27]} 24. Qb1 {[%clk 0:02:19]}  Qxb1 {[%clk 0:01:23]} 25. Rxb1 {[%clk 0:02:18]}  Kg7 {[%clk 0:01:14]} 26. Bc4 {[%clk 0:02:15]}  Rf5 {[%clk 0:01:12]} 27. Ra7 {[%clk 0:02:14]}  Bc6 {[%clk 0:01:09]} 28. Rb6 {[%clk 0:02:08]}  Bd5 {[%clk 0:00:58]} 29. g4 {[%clk 0:02:02]}  Re5 {[%clk 0:00:54]} 30. Bxd5 {[%clk 0:02:02]}  Rxd5 {[%clk 0:00:54]} 31. Rbb7 {[%clk 0:02:03]}  Rd3 {[%clk 0:00:32]} 32. Rxf7+ {[%clk 0:02:02]}  Kg8 {[%clk 0:00:32]} 33. Kg2 {[%clk 0:02:03]}  Rxc3 {[%clk 0:00:32]} 34. Rfc7 {[%clk 0:02:03]}  Rc4 {[%clk 0:00:30]} 35. Ra8 {[%clk 0:02:01]}  Rf4 {[%clk 0:00:30]} 36. Rxc5 {[%clk 0:01:59]}  Rf7 {[%clk 0:00:29]} 37. Rcc8 {[%clk 0:01:59]}  Kg7 {[%clk 0:00:29]} 38. Ra6 {[%clk 0:01:56]}  Bb4 {[%clk 0:00:27]} 39. Rac6 {[%clk 0:01:55]}  Ba5 {[%clk 0:00:26]} 40. h4 {[%clk 0:01:55]}  Rd7 {[%clk 0:00:22]} 41. Rc5 {[%clk 0:01:54]}  Bb6 {[%clk 0:00:21]} 42. Rc2 {[%clk 0:01:54]}  Bd8 {[%clk 0:00:20]} 43. g5 {[%clk 0:01:53]}  h6 {[%clk 0:00:19]} 44. f4 {[%clk 0:01:53]}  hxg5 {[%clk 0:00:19]} 45. hxg5 {[%clk 0:01:54]}  Rd4 {[%clk 0:00:18]} 46. Kf3 {[%clk 0:01:54]}  Be7 {[%clk 0:00:18]} 47. R8c7 {[%clk 0:01:54]}  Kf8 {[%clk 0:00:18]} 48. R2c4 {[%clk 0:01:47]}  Rd1 {[%clk 0:00:17]} 49. R4c6 {[%clk 0:01:46]}  Kf7 {[%clk 0:00:17]} 50. Rb7 {[%clk 0:01:45]}  Rf1+ {[%clk 0:00:16]} 51. Kg3 {[%clk 0:01:44]}  Re1 {[%clk 0:00:13]} 52. Kf2 {[%clk 0:01:42]}  Re4 {[%clk 0:00:12]} 53. Kf3 {[%clk 0:01:43]}  Re1 {[%clk 0:00:10]} 54. Rbb6 {[%clk 0:01:41]}  Rf1+ {[%clk 0:00:11]} 55. Kg3 {[%clk 0:01:41]}  Bd8 {[%clk 0:00:08]} 56. Ra6 {[%clk 0:01:41]}  Rd1 {[%clk 0:00:03]} 57. Rxg6 {[%clk 0:01:40]}  Bc7 {[%clk 0:00:02]} 58. Raf6+ {[%clk 0:01:40]}  Ke8 {[%clk 0:00:03]} 59. Rg8+ {[%clk 0:01:40]}  Ke7 {[%clk 0:00:03]} 60. Rg7+ {[%clk 0:01:41]} 1-0


[Site "https://www.chess.com"]

[Event "Titled Tuesday Blitz August 09 Early 2022"]
[White "Saravana, Krishnan P."]
[Black "Adury, Anant"]
[WhiteFideId "5018382"]
[BlackFideId "30964687"]
[WhiteElo "2155"]
[BlackElo "2328"]
[Result "1-0"]
[Round "02"]
[TimeControl "180+1"]
[Date "2022.08.09"]
[WhiteClock "0:02:08"]
[BlackClock "0:01:32"]

1. c4 {[%clk 0:03:00]}  e5 {[%clk 0:02:59]} 2. Nc3 {[%clk 0:02:59]}  Nc6 {[%clk 0:02:59]} 3. g3 {[%clk 0:02:57]}  Bc5 {[%clk 0:02:59]} 4. Bg2 {[%clk 0:02:57]}  d6 {[%clk 0:02:59]} 5. e3 {[%clk 0:02:58]}  Nge7 {[%clk 0:02:59]} 6. Nge2 {[%clk 0:02:58]}  a6 {[%clk 0:02:59]} 7. d4 {[%clk 0:02:58]}  Ba7 {[%clk 0:03:00]} 8. O-O {[%clk 0:02:58]}  h5 {[%clk 0:03:00]} 9. h3 {[%clk 0:02:57]}  h4 {[%clk 0:02:59]} 10. g4 {[%clk 0:02:57]}  f5 {[%clk 0:03:00]} 11. d5 {[%clk 0:02:55]}  Nb8 {[%clk 0:02:54]} 12. g5 {[%clk 0:02:54]}  Nd7 {[%clk 0:02:51]} 13. f4 {[%clk 0:02:52]}  e4 {[%clk 0:02:51]} 14. Nd4 {[%clk 0:02:49]}  Nc5 {[%clk 0:02:51]} 15. b3 {[%clk 0:02:48]}  c6 {[%clk 0:02:43]} 16. a4 {[%clk 0:02:38]}  a5 {[%clk 0:02:42]} 17. Ba3 {[%clk 0:02:37]}  Nd3 {[%clk 0:02:36]} 18. dxc6 {[%clk 0:02:27]}  bxc6 {[%clk 0:02:35]} 19. Nxe4 {[%clk 0:02:26]}  fxe4 {[%clk 0:02:26]} 20. Bxe4 {[%clk 0:02:26]}  Nc5 {[%clk 0:02:25]} 21. Nxc6 {[%clk 0:02:24]}  Qc7 {[%clk 0:01:46]} 22. Nxe7 {[%clk 0:02:20]}  Nxe4 {[%clk 0:01:43]} 23. Nd5 {[%clk 0:02:20]}  Qf7 {[%clk 0:01:39]} 24. f5 {[%clk 0:02:19]}  Bxf5 {[%clk 0:01:37]} 25. Qf3 {[%clk 0:02:11]}  g6 {[%clk 0:01:36]} 26. Nf6+ {[%clk 0:02:09]}  Nxf6 {[%clk 0:01:31]} 27. Qxa8+ {[%clk 0:02:08]}  Ke7 {[%clk 0:01:32]} 28. Qxa7+ {[%clk 0:02:08]}  Ke6 {[%clk 0:01:32]} 29. Qxf7+ {[%clk 0:02:08]}  Kxf7 {[%clk 0:01:32]} 30. gxf6 {[%clk 0:02:08]} 1-0


[Site "https://www.chess.com"]

[Event "Titled Tuesday Blitz August 09 Early 2022"]
[White "Shpanko, Nadiia"]
[Black "Makarian, Rudik"]
[WhiteFideId "14132400"]
[BlackFideId "44105681"]
[WhiteElo "2139"]
[BlackElo "2403"]
[Result "0-1"]
[Round "02"]
[TimeControl "180+1"]
[Date "2022.08.09"]
[WhiteClock "0:00:34"]
[BlackClock "0:00:39"]

1. d4 {[%clk 0:03:00]}  Nf6 {[%clk 0:03:00]} 2. c4 {[%clk 0:03:00]}  c5 {[%clk 0:03:00]} 3. d5 {[%clk 0:02:59]}  g6 {[%clk 0:03:01]} 4. Nc3 {[%clk 0:02:59]}  Bg7 {[%clk 0:03:02]} 5. e4 {[%clk 0:02:59]}  d6 {[%clk 0:03:03]} 6. Nf3 {[%clk 0:02:58]}  O-O {[%clk 0:03:03]} 7. Be2 {[%clk 0:02:58]}  e6 {[%clk 0:03:03]} 8. O-O {[%clk 0:02:53]}  e5 {[%clk 0:03:02]} 9. Ne1 {[%clk 0:02:44]}  Ne8 {[%clk 0:02:58]} 10. f4 {[%clk 0:02:43]}  exf4 {[%clk 0:02:54]} 11. Bxf4 {[%clk 0:02:44]}  Nd7 {[%clk 0:02:54]} 12. Nd3 {[%clk 0:02:43]}  Qe7 {[%clk 0:02:54]} 13. Rb1 {[%clk 0:02:27]}  Ne5 {[%clk 0:02:35]} 14. Nxe5 {[%clk 0:02:24]}  Bxe5 {[%clk 0:02:36]} 15. Bxe5 {[%clk 0:02:11]}  Qxe5 {[%clk 0:02:37]} 16. Qd3 {[%clk 0:02:07]}  Bd7 {[%clk 0:02:36]} 17. Nd1 {[%clk 0:01:52]}  f5 {[%clk 0:02:32]} 18. Nf2 {[%clk 0:01:45]}  Nf6 {[%clk 0:02:28]} 19. Bf3 {[%clk 0:01:44]}  Rae8 {[%clk 0:02:07]} 20. Rbe1 {[%clk 0:01:17]}  fxe4 {[%clk 0:01:54]} 21. Nxe4 {[%clk 0:01:14]}  Nxe4 {[%clk 0:01:53]} 22. Rxe4 {[%clk 0:01:11]}  Qxb2 {[%clk 0:01:33]} 23. Rb1 {[%clk 0:01:07]}  Qxa2 {[%clk 0:01:28]} 24. Rxb7 {[%clk 0:01:06]}  Qa1+ {[%clk 0:01:15]} 25. Rb1 {[%clk 0:00:56]}  Qf6 {[%clk 0:01:13]} 26. Rxe8 {[%clk 0:00:44]}  Rxe8 {[%clk 0:01:12]} 27. Qd2 {[%clk 0:00:44]}  Bf5 {[%clk 0:01:04]} 28. Rb7 {[%clk 0:00:44]}  a5 {[%clk 0:00:45]} 29. Ra7 {[%clk 0:00:36]}  Qa1+ {[%clk 0:00:40]} 30. Kf2 {[%clk 0:00:36]}  a4 {[%clk 0:00:40]} 31. Qh6 {[%clk 0:00:34]}  Qe1# {[%clk 0:00:39]} 0-1


[Site "https://www.chess.com"]

[Event "Titled Tuesday Blitz August 09 Early 2022"]
[White "Silvestre, Christian"]
[Black "Pein, Jonathan"]
[WhiteFideId "30956269"]
[BlackFideId "417092"]
[WhiteElo "2276"]
[BlackElo "2140"]
[Result "1-0"]
[Round "02"]
[TimeControl "180+1"]
[Date "2022.08.09"]
[WhiteClock "0:01:22"]
[BlackClock "0:00:12"]

1. Nf3 {[%clk 0:02:54]}  Nc6 {[%clk 0:02:58]} 2. e3 {[%clk 0:02:51]}  e5 {[%clk 0:02:58]} 3. d4 {[%clk 0:02:38]}  exd4 {[%clk 0:02:52]} 4. exd4 {[%clk 0:02:36]}  d5 {[%clk 0:02:52]} 5. c3 {[%clk 0:02:36]}  Bg4 {[%clk 0:02:52]} 6. Be2 {[%clk 0:02:35]}  Bd6 {[%clk 0:02:52]} 7. O-O {[%clk 0:02:35]}  Nge7 {[%clk 0:02:53]} 8. Nbd2 {[%clk 0:02:35]}  Qd7 {[%clk 0:02:53]} 9. Re1 {[%clk 0:02:34]}  O-O-O {[%clk 0:02:52]} 10. Nf1 {[%clk 0:02:33]}  h5 {[%clk 0:02:48]} 11. Ng5 {[%clk 0:02:25]}  Ng6 {[%clk 0:02:44]} 12. h3 {[%clk 0:02:04]}  Bf5 {[%clk 0:02:30]} 13. Bxh5 {[%clk 0:01:56]}  f6 {[%clk 0:02:23]} 14. Bxg6 {[%clk 0:01:51]}  Bxg6 {[%clk 0:02:22]} 15. Nf3 {[%clk 0:01:51]}  Bf5 {[%clk 0:02:19]} 16. Ng3 {[%clk 0:01:49]}  Bxh3 {[%clk 0:02:18]} 17. gxh3 {[%clk 0:01:33]}  Qxh3 {[%clk 0:02:19]} 18. Qe2 {[%clk 0:01:31]}  Bxg3 {[%clk 0:00:22]} 19. fxg3 {[%clk 0:01:29]}  Qh1+ {[%clk 0:00:14]} 20. Kf2 {[%clk 0:01:27]}  Rh2+ {[%clk 0:00:10]} 21. Nxh2 {[%clk 0:01:25]}  Qxh2+ {[%clk 0:00:11]} 22. Kf3 {[%clk 0:01:26]}  Qh3 {[%clk 0:00:12]} 23. Qe6+ {[%clk 0:01:22]} 1-0


[Site "https://www.chess.com"]

[Event "Titled Tuesday Blitz August 09 Early 2022"]
[White "Sjoberg, Isak"]
[Black "Quispe Santacruz, Javier"]
[WhiteFideId "1521640"]
[BlackFideId "3800920"]
[WhiteElo "2106"]
[BlackElo "1929"]
[Result "1-0"]
[Round "02"]
[TimeControl "180+1"]
[Date "2022.08.09"]
[WhiteClock "0:00:52"]
[BlackClock "0:00:09"]

1. e4 {[%clk 0:03:00]}  e5 {[%clk 0:02:50]} 2. Nc3 {[%clk 0:03:00]}  Nf6 {[%clk 0:02:42]} 3. d4 {[%clk 0:02:59]}  Nc6 {[%clk 0:02:32]} 4. d5 {[%clk 0:02:52]}  Nd4 {[%clk 0:02:30]} 5. Be3 {[%clk 0:02:48]}  Bb4 {[%clk 0:02:18]} 6. Bxd4 {[%clk 0:02:42]}  exd4 {[%clk 0:02:00]} 7. Qxd4 {[%clk 0:02:43]}  Bxc3+ {[%clk 0:02:00]} 8. bxc3 {[%clk 0:02:41]}  d6 {[%clk 0:02:00]} 9. Bd3 {[%clk 0:02:37]}  O-O {[%clk 0:01:59]} 10. Ne2 {[%clk 0:02:38]}  Re8 {[%clk 0:01:59]} 11. O-O {[%clk 0:02:38]}  Bd7 {[%clk 0:01:59]} 12. Ng3 {[%clk 0:02:37]}  Qe7 {[%clk 0:01:57]} 13. Rab1 {[%clk 0:02:37]}  b6 {[%clk 0:01:38]} 14. h3 {[%clk 0:02:37]}  a5 {[%clk 0:01:33]} 15. Rfe1 {[%clk 0:02:35]}  h5 {[%clk 0:01:31]} 16. Bb5 {[%clk 0:02:31]}  Bxb5 {[%clk 0:01:29]} 17. Rxb5 {[%clk 0:02:30]}  h4 {[%clk 0:01:30]} 18. Nf5 {[%clk 0:02:30]}  Qe5 {[%clk 0:01:30]} 19. Qxe5 {[%clk 0:01:39]}  Rxe5 {[%clk 0:01:31]} 20. f3 {[%clk 0:01:37]}  Rae8 {[%clk 0:01:29]} 21. Rd1 {[%clk 0:01:27]}  g5 {[%clk 0:01:10]} 22. c4 {[%clk 0:01:21]}  Kh7 {[%clk 0:00:58]} 23. Rb3 {[%clk 0:01:19]}  Kg6 {[%clk 0:00:57]} 24. Rbd3 {[%clk 0:01:17]}  Nxe4 {[%clk 0:00:43]} 25. fxe4 {[%clk 0:01:16]}  Rxe4 {[%clk 0:00:43]} 26. Nd4 {[%clk 0:01:13]}  f5 {[%clk 0:00:29]} 27. Rf1 {[%clk 0:01:08]}  f4 {[%clk 0:00:28]} 28. Kf2 {[%clk 0:01:08]}  g4 {[%clk 0:00:14]} 29. hxg4 {[%clk 0:01:08]}  Kg5 {[%clk 0:00:14]} 30. Ne6+ {[%clk 0:01:03]}  Kxg4 {[%clk 0:00:14]} 31. Rd4 {[%clk 0:00:54]}  Re2+ {[%clk 0:00:09]} 32. Kxe2 {[%clk 0:00:52]} 1-0


[Site "https://www.chess.com"]

[Event "Titled Tuesday Blitz August 09 Early 2022"]
[White "Skliarov, Viktor"]
[Black "Pourkashiyan, Atousa"]
[WhiteFideId "14106736"]
[BlackFideId "12502014"]
[WhiteElo "2257"]
[BlackElo "2247"]
[Result "1-0"]
[Round "02"]
[TimeControl "180+1"]
[Date "2022.08.09"]
[WhiteClock "0:01:02"]
[BlackClock "0:00:01"]

1. e4 {[%clk 0:03:00]}  c5 {[%clk 0:02:59]} 2. Nf3 {[%clk 0:03:01]}  e6 {[%clk 0:02:59]} 3. c3 {[%clk 0:03:01]}  Nf6 {[%clk 0:02:59]} 4. Bd3 {[%clk 0:03:00]}  d5 {[%clk 0:02:55]} 5. e5 {[%clk 0:03:01]}  Nfd7 {[%clk 0:02:54]} 6. Bc2 {[%clk 0:03:01]}  d4 {[%clk 0:02:52]} 7. c4 {[%clk 0:02:45]}  Nc6 {[%clk 0:02:50]} 8. d3 {[%clk 0:02:46]}  Ncxe5 {[%clk 0:02:49]} 9. Nxe5 {[%clk 0:02:28]}  Nxe5 {[%clk 0:02:49]} 10. f4 {[%clk 0:02:29]}  Ng6 {[%clk 0:02:35]} 11. O-O {[%clk 0:02:26]}  Bd6 {[%clk 0:02:26]} 12. Ba4+ {[%clk 0:02:19]}  Bd7 {[%clk 0:02:22]} 13. Bxd7+ {[%clk 0:02:19]}  Qxd7 {[%clk 0:02:23]} 14. Qg4 {[%clk 0:02:14]}  O-O {[%clk 0:02:20]} 15. Nd2 {[%clk 0:02:14]}  f5 {[%clk 0:01:58]} 16. Qg3 {[%clk 0:02:07]}  Qc7 {[%clk 0:01:50]} 17. Nb3 {[%clk 0:02:05]}  a5 {[%clk 0:01:46]} 18. Bd2 {[%clk 0:02:05]}  e5 {[%clk 0:01:21]} 19. fxe5 {[%clk 0:02:04]}  Bxe5 {[%clk 0:01:21]} 20. Qh3 {[%clk 0:01:59]}  Nf4 {[%clk 0:01:13]} 21. Qf3 {[%clk 0:01:55]}  Ng6 {[%clk 0:00:49]} 22. Qh3 {[%clk 0:01:54]}  Nf4 {[%clk 0:00:48]} 23. Qf3 {[%clk 0:01:47]}  Ng6 {[%clk 0:00:41]} 24. h3 {[%clk 0:01:35]}  a4 {[%clk 0:00:33]} 25. Qd5+ {[%clk 0:01:28]}  Kh8 {[%clk 0:00:29]} 26. Nxc5 {[%clk 0:01:28]}  Ne7 {[%clk 0:00:23]} 27. Qxb7 {[%clk 0:01:12]}  Qxc5 {[%clk 0:00:22]} 28. Bb4 {[%clk 0:01:12]}  Qc8 {[%clk 0:00:03]} 29. Qxe7 {[%clk 0:01:10]}  Re8 {[%clk 0:00:03]} 30. Qf7 {[%clk 0:01:07]}  Bf6 {[%clk 0:00:02]} 31. Rae1 {[%clk 0:01:05]}  Rb8 {[%clk 0:00:01]} 32. Bd6 {[%clk 0:01:02]} 1-0


[Site "https://www.chess.com"]

[Event "Titled Tuesday Blitz August 09 Early 2022"]
[White "Smietanska, Wiktoria"]
[Black "Sarkar, Justin"]
[WhiteFideId "21869359"]
[BlackFideId "2010011"]
[WhiteElo "1883"]
[BlackElo "2076"]
[Result "0-1"]
[Round "02"]
[TimeControl "180+1"]
[Date "2022.08.09"]
[WhiteClock "0:01:08"]
[BlackClock "0:00:46"]

1. c4 {[%clk 0:03:00]}  g5 {[%clk 0:02:39]} 2. Nc3 {[%clk 0:02:51]}  Bg7 {[%clk 0:02:37]} 3. d4 {[%clk 0:02:48]}  h6 {[%clk 0:02:31]} 4. e4 {[%clk 0:02:46]}  c5 {[%clk 0:02:29]} 5. Nge2 {[%clk 0:02:44]}  cxd4 {[%clk 0:02:19]} 6. Nxd4 {[%clk 0:02:25]}  Nc6 {[%clk 0:02:18]} 7. Be3 {[%clk 0:02:07]}  d6 {[%clk 0:02:12]} 8. Be2 {[%clk 0:02:05]}  Nf6 {[%clk 0:02:04]} 9. O-O {[%clk 0:02:03]}  O-O {[%clk 0:01:36]} 10. f3 {[%clk 0:02:01]}  Nh5 {[%clk 0:01:25]} 11. Qd2 {[%clk 0:01:40]}  Nf4 {[%clk 0:01:12]} 12. Nxc6 {[%clk 0:01:37]}  bxc6 {[%clk 0:01:04]} 13. Bxf4 {[%clk 0:01:34]}  gxf4 {[%clk 0:01:04]} 14. Qxf4 {[%clk 0:01:35]}  Qb6+ {[%clk 0:01:01]} 15. Kh1 {[%clk 0:01:34]}  Qxb2 {[%clk 0:01:01]} 16. Rac1 {[%clk 0:01:10]}  Bxc3 {[%clk 0:00:58]} 17. Qxh6 {[%clk 0:01:09]}  Bg7 {[%clk 0:00:53]} 18. Qh5 {[%clk 0:01:08]}  Qxe2 {[%clk 0:00:46]} 0-1


[Site "https://www.chess.com"]